bitfinex-derivatives/quotes_SOLF0:USTF0_20260311
["timestamp","ask_amount","ask_price","bid_price","bid_amount"]
[1773223840606,3.71478892,84.969,84.925,14.3743058]
[1773223840809,10.591,84.968,84.93,10.596]
[1773223841106,2.83558183,84.98,84.931,3.7783058]
[1773223841307,6.55037075,84.98,84.931,3.7783058]
[1773223841505,3.71478892,84.979,84.931,3.7783058]
[1773223842503,10.59,84.975,84.935,10.595]
[1773223842907,3.71478892,84.974,84.935,10.595]
[1773223843103,3.71478892,84.972,84.935,10.595]
[1773223844107,3.71478892,84.972,84.896,21.201]
[1773223844108,3.71478892,84.949,84.894,3.7783058]
[1773223844310,3.71478892,84.949,84.901,3.7783058]
[1773223844509,3.71478892,84.949,84.91,2.83558183]
[1773223844807,3.71478892,84.949,84.911,3.7783058]
[1773223845913,3.71478892,84.969,84.92,2.83558183]
[1773223846114,3.71478892,84.969,84.931,3.7783058]
[1773223847310,3.71478892,84.969,84.938,10.595]
[1773223847515,10.59,84.98,84.938,10.595]
[1773223847706,10.59,84.98,84.94,6.61388763]
[1773223848413,3.71478892,84.975,84.931,10.596]
[1773223849005,3.71478892,84.969,84.92,2.83558183]
[1773223849409,3.71478892,84.969,84.921,3.7783058]
[1773223849620,3.71478892,84.969,84.93,2.83558183]
[1773223851514,10.59,84.979,84.94,2.83558183]
[1773223853608,10.59,84.979,84.94,2.83572595]
[1773223853912,3.85002477,84.997,84.95,6.75663415]
[1773223854217,3.85002477,84.995,84.951,3.9209082]
[1773223854516,3.85002477,84.993,84.951,3.9209082]
[1773223854717,3.85002477,84.991,84.951,3.9209082]
[1773223855410,10.589,84.987,84.951,3.9209082]
[1773223856612,14.43902477,84.987,84.951,3.9209082]
[1773223856817,3.85002477,84.983,84.942,10.594]
[1773223858317,3.85002477,84.983,84.95,10.593]
[1773223858622,2.83572595,85.0,84.95,10.593]
[1773223858623,3.99856207,84.996,84.951,3.99560794]
[1773223859311,10.589,84.99,84.951,3.99560794]
[1773223859921,10.589,84.984,84.951,3.99560794]
[1773223860523,3.99856207,84.98,84.94,2.83572595]
[1773223861315,3.99856207,84.994,84.95,2.83572595]
[1773223861512,3.99856207,84.994,84.95,6.83133389]
[1773223862422,10.589,84.985,84.95,6.83133389]
[1773223867321,10.589,84.985,84.95,3.99560794]
[1773223867625,3.99856207,84.992,84.953,3.99560794]
[1773223867827,3.99856207,85.004,84.961,3.99560794]
[1773223868027,13.35039676,85.003,84.961,3.99560794]
[1773223868231,9.35183469,85.002,84.961,3.99560794]
[1773223868426,10.588,84.994,84.961,3.99560794]
[1773223868728,9.35559338,84.993,84.961,3.99560794]
[1773223868925,10.588,84.994,84.961,3.99560794]
[1773223869127,9.35559441,84.993,84.961,3.99560794]
[1773223869428,9.35559441,84.992,84.961,3.99560794]
[1773223869623,9.35559441,84.991,84.951,3.99560794]
[1773223869827,3.99856207,85.001,84.951,3.99560794]
[1773223870026,3.99856207,84.999,84.951,3.99560794]
[1773223870229,3.99856207,84.997,84.951,3.99560794]
[1773223870523,3.99856207,84.995,84.951,3.99560794]
[1773223870724,13.42022748,84.994,84.951,3.99560794]
[1773223870926,13.42022748,84.994,84.888,35.35]
[1773223870927,3.99856207,84.989,84.938,3.99560794]
[1773223871132,3.99856207,84.987,84.938,3.99560794]
[1773223871325,10.591,84.967,84.938,3.99560794]
[1773223871630,10.591,84.967,84.93,13.43172595]
[1773223871830,10.591,84.967,84.93,2.83572595]
[1773223873130,3.99856207,84.973,84.931,10.596]
[1773223875735,3.99856207,84.973,84.934,10.595]
[1773223875934,10.59,84.981,84.935,3.99560794]
[1773223876130,10.59,84.981,84.94,2.83572595]
[1773223876131,9.42585689,84.98,84.94,2.83572595]
[1773223876334,10.59,84.981,84.94,2.83572595]
[1773223876634,10.59,84.979,84.94,2.83572595]
[1773223876834,3.99856207,84.985,84.915,11.86]
[1773223876835,3.99856207,84.985,84.951,3.99560794]
[1773223877728,13.42406099,84.984,84.944,14.58960794]
[1773223877932,3.99856207,84.982,84.944,10.594]
[1773223878133,3.99856207,84.98,84.932,3.99560794]
[1773223878334,3.99856207,84.978,84.932,3.99560794]
[1773223878534,3.99856207,84.976,84.932,3.99560794]
[1773223879527,10.591,84.972,84.932,3.99560794]
[1773223879837,3.99856207,84.976,84.933,10.596]
[1773223880033,3.99856207,84.976,84.94,2.83572595]
[1773223880427,3.99856207,84.976,84.934,3.94778002]
[1773223881139,10.59,84.979,84.934,3.94778002]
[1773223881339,10.59,84.979,84.941,3.94778002]
[1773223881837,14.3319596,84.979,84.941,3.94778002]
[1773223882233,3.7419596,84.976,84.936,10.595]
[1773223882434,3.7419596,84.976,84.93,2.83572595]
[1773223882638,2.83572595,84.98,84.93,2.83572595]
[1773223882639,3.7419596,84.974,84.93,2.83572595]
[1773223883538,10.591,84.966,84.93,2.83572595]
[1773223884134,3.7419596,84.958,84.92,2.83572595]
[1773223885338,10.593,84.955,84.92,2.83572595]
[1773223885736,14.3349596,84.955,84.92,2.83572595]
[1773223885938,3.7419596,84.955,84.922,10.597]
[1773223889046,10.593,84.953,84.92,2.83572595]
[1773223889450,3.7419596,84.955,84.92,2.83572595]
[1773223890146,3.7419596,84.955,84.915,3.94778002]
[1773223890348,3.7419596,84.955,84.92,6.78350597]
[1773223890541,3.7419596,84.98,84.94,2.83572595]
[1773223890737,13.16440431,84.979,84.94,2.83572595]
[1773223890948,9.42244471,84.978,84.94,2.83572595]
[1773223891149,10.59,84.978,84.941,14.54278002]
[1773223897555,10.591,84.973,84.941,3.94778002]
[1773223897857,3.7419596,84.972,84.934,10.595]
[1773223899550,10.591,84.969,84.934,10.595]
[1773223899747,14.3329596,84.969,84.934,10.595]
[1773223900146,3.7419596,84.968,84.934,10.595]
[1773223901553,3.7419596,84.958,84.92,2.83572595]
[1773223901754,3.7419596,84.949,84.905,3.94778002]
[1773223903451,14.3359596,84.947,84.906,10.599]
[1773223903856,14.3359596,84.947,84.907,3.94778002]
[1773223904558,3.7419596,84.972,84.921,3.94778002]
[1773223904753,2.83572595,84.97,84.921,3.94778002]
[1773223905062,3.7419596,84.972,84.931,3.94778002]
[1773223906363,3.7419596,84.972,84.932,14.54378002]
[1773223906554,9.42363132,84.971,84.932,3.94778002]
[1773223906760,3.7419596,84.969,84.932,3.94778002]
[1773223906962,9.42363132,84.968,84.932,3.94778002]
[1773223907165,3.7419596,84.969,84.932,3.94778002]
[1773223907363,9.42373539,84.968,84.932,3.94778002]
[1773223907563,3.7419596,84.969,84.932,3.94778002]
[1773223907764,9.42278471,84.968,84.932,3.94778002]
[1773223907966,3.7419596,84.969,84.932,3.94778002]
[1773223908164,9.42278627,84.968,84.932,3.94778002]
[1773223908364,10.591,84.967,84.932,3.94778002]
[1773223909165,3.7419596,84.969,84.932,3.94778002]
[1773223909166,3.7419596,84.969,84.932,14.54378002]
[1773223911565,3.7419596,84.969,84.933,3.79307167]
[1773223911862,10.59,84.976,84.935,3.79307167]
[1773223912056,9.42390485,84.975,84.935,3.79307167]
[1773223912262,9.42390485,84.974,84.935,3.79307167]
[1773223912461,9.42390485,84.973,84.935,3.79307167]
[1773223912662,10.59,84.976,84.935,3.79307167]
[1773223912960,9.42468572,84.975,84.935,3.79307167]
[1773223913161,9.42468572,84.974,84.935,3.79307167]
[1773223913361,9.42468572,84.973,84.935,3.79307167]
[1773223913568,9.42468572,84.972,84.935,3.79307167]
[1773223913767,10.59,84.976,84.935,3.79307167]
[1773223913966,10.59,84.974,84.935,3.79307167]
[1773223914164,9.42620529,84.973,84.935,3.79307167]
[1773223914366,9.42620529,84.972,84.935,3.79307167]
[1773223914566,10.59,84.974,84.935,3.79307167]
[1773223914868,9.42721571,84.973,84.935,3.79307167]
[1773223915174,10.59,84.974,84.935,3.79307167]
[1773223917468,10.59,84.974,84.936,10.595]
[1773223917968,10.59,84.974,84.936,14.38807167]
[1773223918765,14.4906199,84.974,84.936,14.38807167]
[1773223920266,10.7613801,84.999,84.942,3.85723265]
[1773223920267,3.9006199,84.997,84.942,3.85723265]
[1773223920473,3.9006199,84.995,84.942,3.85723265]
[1773223920669,3.9006199,84.993,84.942,3.85723265]
[1773223920868,3.9006199,84.991,84.942,3.85723265]
[1773223921064,3.9006199,84.991,84.94,2.83615802]
[1773223921065,9.43087714,84.99,84.953,3.85723265]
[1773223921272,9.43087714,84.989,84.953,3.85723265]
[1773223921468,2.83615802,85.0,84.953,3.85723265]
[1773223921664,13.32940678,84.999,84.953,3.85723265]
[1773223921868,3.9006199,84.997,84.953,3.85723265]
[1773223922069,10.588,84.995,84.954,14.45023265]
[1773223922265,9.42878688,84.994,84.954,14.45023265]
[1773223922574,3.9006199,84.992,84.95,2.83615802]
[1773223922769,3.9006199,84.989,84.94,2.83615802]
[1773223922973,2.83615802,84.97,84.931,3.85723265]
[1773223923269,3.9006199,84.969,84.931,3.85723265]
[1773223924170,3.9006199,84.969,84.926,10.596]
[1773223924672,3.9006199,84.949,84.905,3.85723265]
[1773223925981,3.9006199,84.949,84.911,3.85723265]
[1773223926572,2.83615802,84.96,84.911,3.85723265]
[1773223926774,3.9006199,84.959,84.911,3.85723265]
[1773223926975,3.9006199,84.949,84.9,2.83615802]
[1773223927375,3.9006199,84.949,84.901,3.85723265]
[1773223928476,14.4946199,84.949,84.905,3.85723265]
[1773223929379,14.4946199,84.949,84.909,10.598]
[1773223930976,3.9006199,84.949,84.909,10.598]
[1773223931280,10.593,84.956,84.915,3.85723265]
[1773223931683,3.9006199,84.961,84.921,3.85723265]
[1773223931878,3.9006199,84.976,84.921,3.85723265]
[1773223932889,3.9006199,84.976,84.896,21.201]
[1773223932890,3.9006199,84.976,84.939,3.85723265]
[1773223933077,3.9006199,84.976,84.93,2.83615802]
[1773223933078,10.59,84.981,84.941,3.85723265]
[1773223933782,14.4906199,84.981,84.941,3.85723265]
[1773223933976,3.9006199,84.981,84.947,10.594]
[1773223934175,3.9006199,84.981,84.941,3.85723265]
[1773223934380,6.73677792,84.98,84.941,3.85723265]
[1773223934683,3.9006199,84.979,84.941,3.85723265]
[1773223935478,14.4906199,84.979,84.941,3.85723265]
[1773223936680,3.9006199,84.979,84.946,10.594]
[1773223936885,3.9006199,84.989,84.941,3.85723265]
[1773223938388,3.9006199,84.986,84.945,14.45123265]
[1773223938987,3.9006199,84.986,84.951,10.593]
[1773223942980,3.92539193,84.983,84.942,10.594]
[1773223944481,3.92539193,84.98,84.942,10.594]
[1773223947390,14.51539193,84.977,84.937,3.77354074]
[1773223951794,14.51539193,84.977,84.94,2.83615802]
[1773223952599,14.51539193,84.977,84.942,10.594]
[1773223954299,3.92539193,84.989,84.95,2.83615802]
[1773223954499,3.92539193,84.989,84.951,3.77354074]
[1773223955499,3.92539193,84.989,84.953,3.77354074]
[1773223956397,3.92539193,84.989,84.954,10.593]
[1773223956901,3.92539193,84.986,84.942,3.77354074]
[1773223958897,10.589,84.986,84.951,3.77354074]
[1773223959099,3.92539193,84.997,84.951,3.77354074]
[1773223960399,10.588,84.993,84.953,10.593]
[1773223960599,10.588,84.993,84.954,3.77354074]
[1773223961408,10.588,84.993,84.956,10.593]
[1773223963208,3.92539193,84.989,84.937,3.77354074]
[1773223963403,3.92539193,84.989,84.94,2.83615802]
[1773223963602,3.92539193,84.989,84.941,3.77354074]
[1773223966409,14.51439193,84.983,84.941,14.36754074]
[1773223966810,10.589,84.983,84.942,3.77354074]
[1773223967110,3.92539193,84.982,84.942,3.77354074]
[1773223968409,3.92539193,84.982,84.945,10.594]
[1773223969114,3.92539193,84.982,84.942,3.77354074]
[1773223969315,3.92539193,84.982,84.93,2.83615802]
[1773223969316,3.92539193,84.982,84.931,3.77354074]
[1773223969515,2.83615802,84.98,84.931,3.77354074]
[1773223969718,3.69457561,84.979,84.931,3.77354074]
[1773223970308,3.69457561,84.959,84.92,3.95946178]
[1773223971416,3.69457561,84.959,84.921,10.597]
[1773223972915,10.593,84.957,84.92,3.95946178]
[1773223973116,3.69457561,84.956,84.92,3.95946178]
[1773223973721,10.593,84.955,84.92,3.95946178]
[1773223974015,3.69457561,84.956,84.92,3.95946178]
[1773223974217,3.69457561,84.967,84.924,3.95946178]
[1773223976415,10.592,84.965,84.926,3.95946178]
[1773223980121,14.6101985,84.965,84.926,3.95946178]
[1773223981119,4.0181985,84.964,84.926,3.95946178]
[1773223981321,4.0181985,84.96,84.925,10.596]
[1773223981616,4.0181985,84.959,84.925,10.596]
[1773223984425,4.0181985,84.959,84.926,4.05398999]
[1773223987224,4.0181985,84.957,84.917,10.597]
[1773223987727,4.0181985,84.957,84.917,14.65098999]
[1773223988032,10.593,84.956,84.922,10.597]
[1773223988628,10.593,84.956,84.922,14.65098999]
[1773223989525,14.6111985,84.956,84.922,14.65098999]
[1773223990528,4.0181985,84.967,84.927,4.05398999]
[1773223991125,4.0181985,84.963,84.928,10.596]
[1773223991523,10.88415611,85.011,84.951,4.05398999]
[1773223991729,4.0181985,85.009,84.963,4.05398999]
[1773223992922,2.83677732,85.0,84.951,4.05398999]
[1773223993127,4.0181985,84.999,84.951,4.05398999]
[1773223993328,35.32,85.023,84.909,21.197]
[1773223993329,4.0181985,84.989,84.94,2.83677732]
[1773223993726,4.0181985,84.989,84.941,4.05398999]
[1773223993926,4.0181985,84.989,84.943,4.05398999]
[1773223994126,10.588,84.996,84.951,4.05398999]
[1773223994830,4.0181985,85.002,84.96,6.89076731]
[1773223996829,35.32,85.025,84.935,11.86]
[1773223996830,4.0181985,85.02,84.97,2.83677732]
[1773223997030,4.0181985,85.019,84.973,4.05398999]
[1773223998434,4.0181985,85.018,84.975,10.59]
[1773224001027,4.0181985,85.018,84.98,2.83677732]
[1773224001226,4.0181985,85.018,84.98,6.66769964]
[1773224001430,4.0181985,85.018,84.981,3.83092232]
[1773224001734,14.56226154,85.029,84.982,10.589]
[1773224001934,14.56226154,85.029,84.983,3.83092232]
[1773224003931,3.97826154,85.028,84.983,3.83092232]
[1773224005438,3.97826154,85.025,84.982,10.589]
[1773224005637,3.97826154,85.019,84.982,10.589]
[1773224006140,3.97826154,85.009,84.966,10.591]
[1773224007936,3.97826154,85.034,84.976,3.83092232]
[1773224008140,3.97826154,85.029,84.976,3.83092232]
[1773224009343,10.585,85.021,84.976,3.83092232]
[1773224013843,3.97826154,85.017,84.976,3.83092232]
[1773224015346,10.585,85.016,84.976,3.83092232]
[1773224020750,14.56326154,85.016,84.976,3.83092232]
[1773224020949,3.97826154,85.015,84.976,3.83092232]
[1773224021552,14.56426154,85.013,84.976,3.83092232]
[1773224022649,3.97826154,85.012,84.976,3.83092232]
[1773224025956,3.97826154,85.012,84.978,3.83092232]
[1773224030354,2.83677732,85.02,84.978,3.83092232]
[1773224030355,4.02112447,85.009,84.978,3.83092232]
[1773224030654,4.02112447,85.009,84.961,4.0075581]
[1773224030847,4.02112447,85.009,84.97,2.83677732]
[1773224031052,4.02112447,85.006,84.97,2.83677732]
[1773224031252,4.02112447,84.999,84.95,2.83677732]
[1773224031447,4.02112447,84.999,84.942,4.0075581]
[1773224031752,4.02112447,84.989,84.942,4.0075581]
[1773224032351,4.02112447,84.987,84.945,14.6015581]
[1773224032658,4.02112447,84.987,84.946,4.0075581]
[1773224033452,4.02112447,84.987,84.949,10.593]
[1773224037356,3.72756125,84.998,84.96,2.83545606]
[1773224037655,3.72756125,85.01,84.971,4.02244515]
[1773224038254,6.56301731,85.01,84.971,4.02244515]
[1773224038452,10.586,85.008,84.971,4.02244515]
[1773224038655,2.83545606,85.02,84.971,4.02244515]
[1773224039054,3.72756125,85.02,84.971,4.02244515]
[1773224040364,3.72756125,85.018,84.978,10.59]
[1773224040858,3.72756125,85.018,84.971,4.02244515]
[1773224041067,3.72756125,85.024,84.984,4.02244515]
[1773224041361,2.83545606,85.02,84.972,4.02244515]
[1773224041552,3.72756125,85.008,84.96,6.85790121]
[1773224041753,3.72756125,84.999,84.95,6.85790121]
[1773224041956,3.72756125,84.999,84.951,4.02244515]
[1773224043463,14.31556125,84.994,84.952,10.593]
[1773224043662,3.72756125,84.993,84.952,10.593]
[1773224044166,3.72756125,84.989,84.952,10.593]
[1773224045772,10.587,85.001,84.96,2.83545606]
[1773224045965,10.587,85.001,84.96,6.85790121]
[1773224047068,10.587,85.001,84.96,4.02244515]
[1773224047469,10.587,85.001,84.964,10.592]
[1773224048766,10.587,84.998,84.96,4.02244515]
[1773224049072,10.587,84.998,84.935,11.86]
[1773224049073,3.72756125,84.997,84.948,4.02244515]
[1773224050470,10.588,84.994,84.951,10.593]
[1773224050670,14.31556125,84.994,84.951,10.593]
[1773224051672,14.31556125,84.994,84.951,14.61544515]
[1773224051872,14.31556125,84.994,84.954,10.593]
[1773224054377,3.72756125,84.993,84.954,10.593]
[1773224055068,3.72756125,84.982,84.948,10.594]
[1773224057273,3.72756125,84.982,84.939,4.02244515]
[1773224059373,2.83545606,84.99,84.946,4.02244515]
[1773224059566,3.72756125,84.994,84.946,4.02244515]
[1773224059967,3.72756125,84.994,84.96,10.592]
[1773224060263,10.587,84.999,84.961,3.98446155]
[1773224060972,10.587,84.999,84.939,11.86]
[1773224060973,3.91159843,85.005,84.964,3.98446155]
[1773224061373,3.91159843,85.005,84.971,10.591]
[1773224061674,3.91159843,85.005,84.946,11.86]
[1773224061675,3.91159843,85.017,84.972,3.98446155]
[1773224062264,3.91159843,85.017,84.976,10.59]
[1773224062473,3.91159843,85.017,84.977,3.98446155]
[1773224063371,10.584,85.028,84.985,3.98446155]
[1773224063577,14.49559843,85.028,84.985,3.98446155]
[1773224063875,3.91159843,85.027,84.985,3.98446155]
[1773224064070,3.91159843,85.025,84.989,10.589]
[1773224064277,3.91159843,85.025,84.985,3.98446155]
[1773224065475,3.91159843,85.023,84.985,3.98446155]
[1773224069774,3.91159843,85.023,84.987,3.98446155]
[1773224070379,3.91159843,85.023,84.988,10.589]
[1773224072679,3.91159843,85.023,84.987,3.98446155]
[1773224078589,10.584,85.022,84.987,3.98446155]
[1773224081688,10.584,85.022,84.988,10.589]
[1773224082184,14.49559843,85.022,84.988,10.589]
[1773224085189,3.91159843,85.019,84.987,3.98446155]
[1773224085887,14.49659843,85.019,84.987,3.98446155]
[1773224086093,3.91159843,85.018,84.987,3.98446155]
[1773224086792,3.91159843,85.018,84.98,3.98446155]
[1773224086992,3.91159843,85.018,84.981,10.59]
[1773224087193,3.91159843,85.018,84.982,3.98446155]
[1773224095797,10.583,85.032,84.992,3.78813184]
[1773224095994,21.158,85.067,84.992,3.78813184]
[1773224095995,2.8333709,85.03,84.992,3.78813184]
[1773224096192,3.91364307,85.029,84.992,3.78813184]
[1773224096597,3.91364307,85.029,84.98,2.8333709]
[1773224096598,3.91364307,85.029,84.995,3.78813184]
[1773224097293,3.91364307,85.029,84.997,10.588]
[1773224097895,3.91364307,85.062,85.003,3.78813184]
[1773224098091,164.401,85.153,84.982,11.86]
[1773224098092,3.91364307,85.059,85.011,3.78813184]
[1773224098291,3.91364307,85.057,85.011,3.78813184]
[1773224099396,3.91364307,85.053,85.011,3.78813184]
[1773224100501,3.91364307,85.048,85.013,10.586]
[1773224100796,3.91364307,85.048,85.013,14.37413184]
[1773224101197,3.91364307,85.048,85.014,3.78813184]
[1773224102002,3.91364307,85.048,85.007,3.70298888]
[1773224102402,10.582,85.046,85.007,3.70298888]
[1773224105096,14.45512253,85.046,85.007,3.70298888]
[1773224109003,3.87312253,85.045,85.007,3.70298888]
[1773224109209,3.87312253,85.039,84.991,3.70298888]
[1773224110505,3.87312253,85.036,84.992,14.29098888]
[1773224110705,3.87312253,85.036,84.993,3.70298888]
[1773224112207,3.87312253,85.029,84.993,3.70298888]
[1773224112408,3.87312253,85.028,84.983,3.70298888]
[1773224113209,2.8333709,85.03,84.983,3.70298888]
[1773224113407,2.8333709,85.04,84.991,3.70298888]
[1773224113605,3.87312253,85.039,84.991,3.70298888]
[1773224114207,3.87312253,85.039,84.99,2.8333709]
[1773224114208,3.87312253,85.059,85.006,3.70298888]
[1773224114404,3.87312253,85.057,85.011,3.70298888]
[1773224115205,3.87312253,85.057,85.021,10.585]
[1773224115512,3.87312253,85.057,85.011,3.70298888]
[1773224116414,3.87312253,85.056,85.014,10.585]
[1773224117304,10.581,85.054,85.014,14.28798888]
[1773224117510,14.45412253,85.054,85.014,14.28798888]
[1773224117712,3.87312253,85.053,85.014,14.28798888]
[1773224119317,3.87312253,85.053,85.015,3.70298888]
[1773224120317,3.87312253,85.053,85.018,4.05818105]
[1773224122317,3.87312253,85.053,85.019,10.585]
[1773224122814,10.579,85.069,85.021,4.05818105]
[1773224123019,3.68621058,85.077,85.034,4.05818105]
[1773224124323,3.68621058,85.075,85.035,14.64118105]
[1773224124525,3.68621058,85.075,85.036,4.05818105]
[1773224125524,3.68621058,85.075,85.037,14.64018105]
[1773224125825,3.68621058,85.075,85.041,4.05818105]
[1773224126723,10.577,85.086,85.041,4.05818105]
[1773224127321,3.68621058,85.085,85.042,10.582]
[1773224127623,14.26321058,85.084,85.043,4.05818105]
[1773224127817,10.577,85.084,85.043,4.05818105]
[1773224128023,3.68621058,85.083,85.043,4.05818105]
[1773224128817,3.68621058,85.083,85.045,10.582]
[1773224129222,3.68621058,85.083,85.049,4.05818105]
[1773224129428,3.68621058,85.096,85.051,4.05818105]
[1773224130424,3.68621058,85.096,85.057,10.58]
[1773224130625,3.68621058,85.096,85.057,14.63818105]
[1773224130821,10.575,85.095,85.057,4.05818105]
[1773224131038,3.68621058,85.089,85.045,4.05818105]
[1773224131726,10.90485826,85.125,85.009,21.172]
[1773224131727,3.68621058,85.074,85.036,4.05818105]
[1773224133828,10.578,85.075,85.009,33.012]
[1773224133829,3.68621058,85.091,85.04,2.8333709]
[1773224134030,3.68621058,85.089,85.038,4.05818105]
[1773224134823,3.68621058,85.078,85.038,10.582]
[1773224135832,3.68621058,85.065,85.027,4.05818105]
[1773224136426,3.68621058,85.065,85.034,10.583]
[1773224136627,3.68621058,85.076,85.035,4.05818105]
[1773224136828,3.68621058,85.088,85.041,4.05818105]
[1773224137528,3.68621058,85.099,85.062,10.579]
[1773224138232,3.68621058,85.099,85.065,10.579]
[1773224138436,3.68621058,85.099,85.066,4.05818105]
[1773224139132,3.68621058,85.099,85.068,10.579]
[1773224139329,3.68621058,85.099,85.066,4.05818105]
[1773224144733,14.26121058,85.099,85.066,4.05818105]
[1773224149033,3.68621058,85.089,85.005,4.05818105]
[1773224149239,6.51958148,85.07,85.021,4.05818105]
[1773224149441,2.8333709,85.08,85.021,4.05818105]
[1773224149634,2.8333709,85.08,85.031,4.05818105]
[1773224150441,2.8333709,85.08,85.043,3.95584185]
[1773224151343,2.8333709,85.08,85.044,10.582]
[1773224152340,2.8333709,85.08,85.045,3.95584185]
[1773224155047,3.69999388,85.069,85.021,3.95584185]
[1773224155443,2.8333709,85.06,85.024,14.53984185]
[1773224155747,3.69999388,85.059,85.024,14.53984185]
[1773224160648,3.96163455,85.056,85.018,10.585]
[1773224160844,2.83087796,85.05,85.018,10.585]
[1773224161647,3.96163455,85.053,85.018,10.585]
[1773224166561,6.79251251,85.05,85.012,10.586]
[1773224167454,6.79251251,85.05,85.018,10.585]
[1773224167658,3.96163455,85.05,85.018,10.585]
[1773224168759,3.96163455,85.05,85.013,3.93025415]
[1773224169759,6.79251251,85.05,85.015,10.585]
[1773224169961,3.96163455,85.049,85.015,10.585]
[1773224173164,3.96163455,85.049,85.015,14.51525415]
[1773224174166,3.96163455,85.049,85.016,3.93025415]
[1773224174360,3.96163455,85.049,85.018,3.93025415]
[1773224174665,35.32,85.084,85.018,3.93025415]
[1773224174666,10.58,85.059,85.018,3.93025415]
[1773224175066,10.581,85.054,85.019,3.93025415]
[1773224177766,3.96163455,85.053,85.019,3.93025415]
[1773224177970,10.581,85.052,85.019,3.93025415]
[1773224178469,14.54263455,85.052,85.019,3.93025415]
[1773224182371,2.83087796,85.06,85.021,3.99882809]
[1773224182565,2.83087796,85.07,85.021,3.99882809]
[1773224183172,10.579,85.063,85.03,3.99882809]
[1773224183674,3.85972008,85.062,85.03,3.99882809]
[1773224183874,6.69059804,85.06,85.03,3.99882809]
[1773224184065,3.85972008,85.059,85.03,3.99882809]
[1773224185077,2.83087796,85.06,85.03,3.99882809]
[1773224185979,10.579,85.065,85.03,3.99882809]
[1773224188278,3.85972008,85.064,85.03,3.99882809]
[1773224188975,2.83087796,85.07,85.03,3.99882809]
[1773224189176,21.147,85.112,84.967,47.09]
[1773224189177,3.85972008,85.088,85.041,3.99882809]
[1773224189376,3.85972008,85.088,85.044,3.99882809]
[1773224189777,3.85972008,85.085,85.044,3.99882809]
[1773224190179,3.85972008,85.079,85.033,3.99882809]
[1773224190378,3.85972008,85.075,85.033,3.99882809]
[1773224191381,3.85972008,85.075,85.035,3.99882809]
[1773224192180,10.577,85.083,85.041,3.99882809]
[1773224193370,10.577,85.083,85.044,3.99882809]
[1773224194175,3.85972008,85.099,85.05,2.83087796]
[1773224194383,3.85972008,85.099,85.051,3.99882809]
[1773224195385,3.85972008,85.096,85.054,10.58]
[1773224196384,14.43572008,85.094,85.054,10.58]
[1773224196986,14.43572008,85.094,85.055,3.99882809]
[1773224197485,3.85972008,85.094,85.058,3.99882809]
[1773224197685,3.85972008,85.108,85.058,3.99882809]
[1773224197885,3.85972008,85.108,85.06,2.83087796]
[1773224198088,2.83087796,85.1,85.061,3.99882809]
[1773224198388,10.575,85.099,85.061,3.99882809]
[1773224198986,10.576,85.093,85.061,3.99882809]
[1773224201287,3.85972008,85.084,85.037,3.99882809]
[1773224203292,3.85972008,85.084,85.041,3.99882809]
[1773224203493,10.578,85.078,85.041,3.99882809]
[1773224204298,10.578,85.078,85.042,10.582]
[1773224205498,10.578,85.078,85.042,14.58082809]
[1773224206499,10.578,85.078,85.043,3.99882809]
[1773224206700,14.43672008,85.084,85.045,3.99882809]
[1773224207093,3.85972008,85.098,85.054,3.99882809]
[1773224207399,3.85972008,85.11,85.061,3.99882809]
[1773224207594,3.85972008,85.11,85.07,2.83087796]
[1773224207793,3.85972008,85.11,85.071,3.99882809]
[1773224208398,10.574,85.108,85.071,3.99882809]
[1773224215412,14.61621512,85.108,85.071,3.99882809]
[1773224215614,4.04221512,85.107,85.061,3.72530759]
[1773224217313,10.575,85.098,85.061,3.72530759]
[1773224217512,3.80938448,85.097,85.061,3.72530759]
[1773224219417,3.80938448,85.099,85.051,10.581]
[1773224219708,3.80938448,85.089,85.053,10.581]
[1773224219914,3.80938448,85.089,85.053,14.41238013]
[1773224220715,3.80938448,85.089,85.053,3.83138013]
[1773224221013,36.15090308,85.195,85.035,11.84]
[1773224221014,3.80938448,85.109,85.061,3.83138013]
[1773224221216,3.80938448,85.109,85.071,3.83138013]
[1773224221414,3.80938448,85.119,85.071,3.83138013]
[1773224222015,3.80938448,85.11,85.074,14.40938013]
[1773224222313,3.80938448,85.11,85.033,21.167]
[1773224222314,3.80938448,85.109,85.063,3.83138013]
[1773224222510,10.576,85.092,85.05,13.40825414]
[1773224222714,3.80938448,85.091,85.051,3.83138013]
[1773224223312,3.80938448,85.079,85.036,3.83138013]